[Event "15e Open International d'Echecs Mont de Marsan"]
[Site "Mont de Marsan, France"]
[Date "????.??.??"]
[Round "9.3"]
[White "JEREZ PEREZ, ALFONSO"]
[Black "LEMEAUX, DAVID"]
[Result "1/2-1/2"]
[TimeControl "60 minutes + 30 secondes per move"]
[WhiteTitle "IM"]
[BlackTitle "FM"]
[WhiteElo "2418"]
[BlackElo "2239"]

1. e4 {[%clk 01:30:47]} {[%emt 00:00:11]} c5 {[%clk 01:30:32]} {[%emt
00:00:29]} 2. Nf3 {[%clk 01:31:11]} {[%emt 00:00:06]} e6 {[%clk 01:30:57]}
{[%emt 00:00:06]} 3. c3 {[%clk 01:31:37]} {[%emt 00:00:04]} d5 {[%clk
01:31:05]} {[%emt 00:00:21]} 4. exd5 {[%clk 01:32:01]} {[%emt 00:00:06]} Qxd5
{[%clk 01:31:26]} {[%emt 00:00:09]} 5. d4 {[%clk 01:32:24]} {[%emt 00:00:07]}
Nf6 {[%clk 01:31:49]} {[%emt 00:00:07]} 6. Bd3 {[%clk 01:32:39]} {[%emt
00:00:15]} Be7 {[%clk 01:31:53]} {[%emt 00:00:25]} 7. O-O {[%clk 01:32:53]}
{[%emt 00:00:17]} O-O {[%clk 01:31:45]} {[%emt 00:00:39]} 8. c4 {[%clk
01:33:17]} {[%emt 00:00:05]} Qh5 {[%clk 01:30:43]} {[%emt 00:01:32]} 9. Be2
{[%clk 01:31:55]} {[%emt 00:01:53]} Rd8 {[%clk 01:30:46]} {[%emt 00:00:26]} 10.
Ne5 {[%clk 01:17:40]} {[%emt 00:14:45]} Qh4 {[%clk 01:29:50]} {[%emt 00:01:25]}
11. Nf3 {[%clk 01:17:47]} {[%emt 00:00:23]} Qh5 {[%clk 01:30:06]} {[%emt
00:00:14]} 12. Qc2 {[%clk 01:15:25]} {[%emt 00:02:53]} Nc6 {[%clk 01:27:50]}
{[%emt 00:02:46]} 13. dxc5 {[%clk 01:09:24]} {[%emt 00:06:32]} Bxc5 {[%clk
01:20:53]} {[%emt 00:07:26]} 14. Nc3 {[%clk 00:59:22]} {[%emt 00:10:32]} b6
{[%clk 01:11:35]} {[%emt 00:09:48]} 15. Bf4 {[%clk 00:48:09]} {[%emt 00:11:43]}
Bb7 {[%clk 00:58:42]} {[%emt 00:13:24]} 16. Rad1 {[%clk 00:42:16]} {[%emt
00:06:23]} Qg6 {[%clk 00:55:41]} {[%emt 00:03:31]} 17. Qxg6 {[%clk 00:40:35]}
{[%emt 00:02:11]} hxg6 {[%clk 00:56:03]} {[%emt 00:00:07]} 18. a3 {[%clk
00:40:12]} {[%emt 00:00:53]} Nd4 {[%clk 00:50:50]} {[%emt 00:05:42]} 19. Nxd4
{[%clk 00:36:18]} {[%emt 00:04:24]} Bxd4 {[%clk 00:49:08]} {[%emt 00:02:11]} 20.
Rc1 {[%clk 00:33:39]} {[%emt 00:03:10]} Rd7 {[%clk 00:46:20]} {[%emt 00:03:18]}
21. b4 {[%clk 00:28:32]} {[%emt 00:05:37]} e5 {[%clk 00:45:28]} {[%emt
00:01:22]} 22. Be3 {[%clk 00:27:10]} {[%emt 00:01:52]} Kf8 {[%clk 00:36:44]}
{[%emt 00:09:14]} 23. Rfd1 {[%clk 00:24:57]} {[%emt 00:02:42]} Bxe3 {[%clk
00:36:47]} {[%emt 00:00:27]} 24. fxe3 {[%clk 00:25:15]} {[%emt 00:00:12]} Bc6
{[%clk 00:30:09]} {[%emt 00:07:07]} 25. Rxd7 {[%clk 00:22:26]} {[%emt
00:03:20]} Bxd7 {[%clk 00:30:21]} {[%emt 00:00:18]} 26. e4 {[%clk 00:16:50]}
{[%emt 00:06:06]} Rc8 {[%clk 00:28:42]} {[%emt 00:02:09]} 27. Bd3 {[%clk
00:15:32]} {[%emt 00:01:48]} Ke7 {[%clk 00:24:39]} {[%emt 00:04:33]} 28. h3
{[%clk 00:14:26]} {[%emt 00:01:36]} Be6 {[%clk 00:22:53]} {[%emt 00:02:16]} 29.
Ne2 {[%clk 00:14:49]} {[%emt 00:00:07]} Nd7 {[%clk 00:16:06]} {[%emt 00:07:16]}
30. Kf2 {[%clk 00:13:32]} {[%emt 00:01:47]} 1/2-1/2